bitfinex-derivatives/quotes_BTCF0:USTF0_20241226
["timestamp","ask_amount","ask_price","bid_price","bid_amount"]
[1735245450946,0.27857242,95575.0,95573.0,0.175096]
[1735245451335,0.1205,95599.0,95573.0,0.122726]
[1735245451543,0.1205,95599.0,95582.0,0.052365]
[1735245451740,0.1205,95599.0,95573.0,0.122726]
[1735245451741,0.052361,95591.0,95573.0,0.122726]
[1735245452048,0.004,95575.0,95573.0,0.122726]
[1735245452246,0.07656207,95592.0,95573.0,0.122726]
[1735245452441,0.05237,95574.0,95573.0,0.018]
[1735245452942,0.05237,95574.0,95573.0,0.009]
[1735245453644,0.052371,95572.0,95563.0,0.052376]
[1735245453844,0.052371,95572.0,95564.0,0.052375]
[1735245454147,0.052371,95572.0,95566.0,0.052374]
[1735245454745,0.052372,95571.0,95566.0,0.052374]
[1735245455650,0.052372,95571.0,95566.0,0.054374]
[1735245455853,0.052372,95570.0,95566.0,0.054374]
[1735245456044,0.052373,95569.0,95566.0,0.001]
[1735245456247,0.052373,95569.0,95566.0,0.003]
[1735245456646,0.052373,95569.0,95566.0,0.002]
[1735245457748,0.052373,95569.0,95566.0,0.001]
[1735245458145,0.052373,95569.0,95566.0,0.123726]
[1735245461351,0.052373,95569.0,95566.0,0.122726]
[1735245461558,0.15892377,95579.0,95566.0,0.123726]
[1735245461750,0.052373,95568.0,95566.0,0.123726]
[1735245463549,0.052374,95567.0,95566.0,0.123726]
[1735245464449,0.052374,95567.0,95566.0,0.122726]
[1735245464757,0.052374,95567.0,95566.0,0.123726]
[1735245464957,0.052374,95567.0,95566.0,0.122726]
[1735245465158,0.052374,95567.0,95566.0,0.123726]
[1735245465553,0.052374,95567.0,95566.0,0.122726]
[1735245467253,0.052383,95551.0,95546.0,0.052385]
[1735245467563,0.052383,95550.0,95549.0,0.12429588]
[1735245468151,0.052383,95550.0,95549.0,0.00156988]
[1735245468366,0.20616207,95559.0,95528.0,0.241]
[1735245468663,0.12895007,95550.0,95549.0,0.009]
[1735245468861,0.052388,95550.0,95549.0,0.009]
[1735245469157,0.052388,95550.0,95549.0,0.007]
[1735245470060,0.052388,95550.0,95549.0,0.001]
[1735245470259,0.052388,95550.0,95549.0,0.005]
[1735245471157,0.052388,95550.0,95549.0,0.004]
[1735245472861,0.052389,95549.0,95528.0,0.241]
[1735245473056,0.052389,95549.0,95528.0,0.363726]
[1735245473467,0.052398,95532.0,95528.0,0.363726]
[1735245474053,0.052398,95532.0,95528.0,0.368726]
[1735245474256,0.07656207,95540.0,95528.0,0.252726]
[1735245474553,0.0524,95530.0,95528.0,0.133726]
[1735245474767,0.0524,95530.0,95528.0,0.127726]
[1735245474961,0.0524,95530.0,95528.0,0.132726]
[1735245475268,0.0524,95530.0,95528.0,0.127726]
[1735245475455,0.0524,95530.0,95528.0,0.128726]
[1735245476371,0.0524,95530.0,95528.0,0.242426]
[1735245476665,0.0524,95530.0,95528.0,0.246426]
[1735245476963,0.0524,95530.0,95528.0,0.242426]
[1735245477166,0.0524,95530.0,95529.0,0.1189]
[1735245477667,0.0524,95530.0,95529.0,0.241626]
[1735245478168,0.0524,95530.0,95529.0,0.242626]
[1735245479763,0.0524,95530.0,95529.0,0.246626]
[1735245481872,0.0524,95530.0,95529.0,0.127726]
[1735245485171,0.052364,95595.0,95555.0,0.052386]
[1735245485468,0.052384,95559.0,95530.0,0.07656207]
[1735245485770,0.07656207,95560.0,95530.0,0.19928807]
[1735245485960,0.052384,95559.0,95547.0,0.05239]
[1735245486160,0.052387,95552.0,95530.0,0.19928807]
[1735245486471,0.052387,95552.0,95550.0,0.052388]
[1735245486767,0.052385,95556.0,95555.0,0.001]
[1735245487556,0.07656207,95560.0,95551.0,0.052387]
[1735245487760,0.001,95552.0,95551.0,0.175113]
[1735245489257,0.052386,95555.0,95551.0,0.122726]
[1735245489462,0.052386,95555.0,95552.0,0.052387]
[1735245489873,0.052386,95555.0,95544.0,0.03203531]
[1735245490071,0.052384,95559.0,95554.0,0.052386]
[1735245490374,0.052385,95557.0,95554.0,0.052386]
[1735245490569,0.001,95555.0,95554.0,0.052386]
[1735245490976,0.006,95555.0,95554.0,0.052386]
[1735245491279,0.005,95555.0,95554.0,0.052386]
[1735245492566,0.052385,95556.0,95554.0,0.052386]
[1735245493175,0.005,95555.0,95554.0,0.052386]
[1735245493672,0.052385,95556.0,95554.0,0.052386]
[1735245493877,0.057385,95556.0,95554.0,0.052386]
[1735245494377,0.005,95555.0,95554.0,0.052386]
[1735245494564,0.005,95555.0,95548.0,0.052389]
[1735245494770,0.005,95555.0,95540.0,0.245626]
[1735245494970,0.052393,95542.0,95540.0,0.122726]
[1735245495181,0.052392,95543.0,95540.0,0.122726]
[1735245495570,0.07656207,95550.0,95537.0,0.052395]
[1735245495772,0.052394,95539.0,95537.0,0.175121]
[1735245496083,0.052394,95539.0,95535.0,0.052396]
[1735245496282,0.052394,95539.0,95536.0,0.052396]
[1735245496679,0.05239,95548.0,95530.0,0.052399]
[1735245496880,0.07656207,95550.0,95533.0,0.052397]
[1735245497081,0.07656207,95550.0,95537.0,0.001]
[1735245497383,0.07656207,95550.0,95537.0,0.053395]
[1735245497578,0.05239,95548.0,95538.0,0.052395]
[1735245497884,0.05239,95548.0,95542.0,0.052392]
[1735245498080,0.2546,95554.0,95537.0,0.122726]
[1735245498291,0.2546,95554.0,95541.0,0.052393]
[1735245498481,0.052387,95553.0,95541.0,0.052393]
[1735245498679,0.05239,95548.0,95541.0,0.175119]
[1735245499080,0.27857242,95552.0,95541.0,0.122726]
[1735245499384,0.052393,95542.0,95541.0,0.122726]
[1735245499972,0.27857242,95552.0,95541.0,0.122726]
[1735245500173,0.052391,95546.0,95541.0,0.122726]
[1735245500374,0.052391,95545.0,95541.0,0.122726]
[1735245500680,0.052391,95545.0,95542.0,0.052393]
[1735245501078,0.052391,95545.0,95542.0,0.175119]
[1735245502580,0.052388,95551.0,95545.0,0.052391]
[1735245502884,0.1332,95579.0,95546.0,0.1247]
[1735245503078,0.052376,95574.0,95560.0,0.07656207]
[1735245503273,0.052376,95574.0,95567.0,0.052379]
[1735245503487,0.052376,95573.0,95567.0,0.052379]
[1735245503693,0.052376,95573.0,95567.0,0.175105]
[1735245503893,0.07656207,95580.0,95567.0,0.122726]
[1735245504183,0.052379,95568.0,95567.0,0.122726]
[1735245504687,0.00256997,95571.0,95567.0,0.129726]
[1735245505478,0.05494697,95571.0,95567.0,0.129726]
[1735245505679,0.052378,95569.0,95567.0,0.129726]
[1735245505883,0.052378,95569.0,95567.0,0.138726]
[1735245506179,0.052378,95569.0,95567.0,0.131726]
[1735245506884,0.009,95569.0,95567.0,0.123726]
[1735245507089,0.009,95569.0,95567.0,0.176105]
[1735245507482,0.052367,95590.0,95567.0,0.123726]
[1735245507677,0.052367,95590.0,95570.0,0.07656207]
[1735245507875,0.2559,95605.0,95597.0,0.052363]
[1735245508093,0.2559,95605.0,95579.0,0.052372]
[1735245508094,0.1242,95605.0,95599.0,0.052361]
[1735245508387,0.1242,95605.0,95590.0,0.07656207]
[1735245508388,0.1242,95605.0,95601.0,0.05236]
[1735245508689,0.00156944,95625.0,95591.0,0.3801]
[1735245508995,0.05235,95620.0,95613.0,0.052354]
[1735245509477,0.05235,95620.0,95613.0,0.17508]
[1735245509885,0.052351,95618.0,95613.0,0.122726]
[1735245510188,0.052352,95617.0,95613.0,0.123726]
[1735245510382,0.052353,95615.0,95613.0,0.001]
[1735245511791,0.07656207,95623.0,95601.0,0.05236]
[1735245512089,0.052353,95614.0,95613.0,0.001]
[1735245512389,0.052359,95603.0,95601.0,0.122726]
[1735245512785,0.052359,95603.0,95601.0,0.049726]
[1735245512986,0.052359,95603.0,95601.0,0.058726]
[1735245513588,0.054359,95603.0,95601.0,0.049726]
[1735245515489,0.053359,95603.0,95601.0,0.049726]
[1735245515893,0.055359,95603.0,95601.0,0.049726]
[1735245516584,0.053359,95603.0,95601.0,0.049726]
[1735245516784,0.053359,95603.0,95591.0,0.38082]
[1735245516785,0.052363,95597.0,95591.0,0.38082]
[1735245517087,0.052363,95597.0,95591.0,0.429826]
[1735245517890,0.052363,95597.0,95591.0,0.356826]
[1735245518088,0.052363,95596.0,95591.0,0.356826]
[1735245518479,0.003,95603.0,95594.0,0.052364]
[1735245518685,0.05236,95601.0,95596.0,0.052363]
[1735245518885,0.052362,95599.0,95596.0,0.052363]
[1735245519087,0.052363,95597.0,95596.0,0.049726]
[1735245520495,0.054363,95597.0,95596.0,0.049726]
[1735245522890,0.054363,95597.0,95593.0,0.029091]
[1735245523199,0.002,95597.0,95593.0,0.029091]
[1735245523596,0.052364,95594.0,95593.0,0.029091]
[1735245526198,0.052364,95594.0,95593.0,0.030091]
[1735245527796,0.052364,95594.0,95591.0,0.264191]
[1735245528491,0.052364,95594.0,95593.0,0.001]
[1735245528989,0.052364,95594.0,95593.0,0.052365]
[1735245529485,0.052364,95594.0,95593.0,0.053365]
[1735245532790,0.052364,95594.0,95591.0,0.108565]
[1735245533693,0.001,95594.0,95593.0,0.052365]
[1735245533904,0.052356,95609.0,95605.0,0.052358]
[1735245534199,0.052359,95606.0,95605.0,0.052358]
[1735245535001,0.1294,95611.0,95596.0,0.07656207]
[1735245535300,0.1294,95611.0,95597.0,0.052363]
[1735245535497,0.05236,95602.0,95597.0,0.052363]
[1735245535699,0.004,95606.0,95596.0,0.07656207]
[1735245535899,0.004,95606.0,95605.0,0.052358]
[1735245536090,0.052346,95628.0,95597.0,0.1247]
[1735245536289,0.052346,95628.0,95617.0,0.052352]
[1735245536492,0.052346,95628.0,95626.0,0.052346]
[1735245536693,0.0275739,95630.0,95618.0,0.20596247]
[1735245536899,0.05234,95638.0,95632.0,0.052343]
[1735245537092,0.02978724,95635.0,95632.0,0.052343]
[1735245537694,0.02978724,95635.0,95623.0,0.07656207]
[1735245537695,0.0015692,95635.0,95634.0,0.052342]
[1735245537899,0.02738314,95646.0,95644.0,0.052337]
[1735245538095,0.1259,95660.0,95649.0,0.052334]
[1735245538096,0.052331,95654.0,95649.0,0.052334]
[1735245538295,0.052332,95653.0,95649.0,0.052334]
[1735245538495,0.052333,95652.0,95646.0,0.052336]
[1735245538803,0.052333,95652.0,95647.0,0.052335]
[1735245539301,0.052333,95652.0,95649.0,0.009]
[1735245539692,0.15342413,95660.0,95649.0,0.009]
[1735245539903,0.052333,95651.0,95647.0,0.061335]
[1735245540104,0.052333,95651.0,95647.0,0.070335]
[1735245540601,0.052334,95650.0,95647.0,0.070335]
[1735245540795,0.15342413,95660.0,95647.0,0.018]
[1735245540995,0.052333,95651.0,95647.0,0.018]
[1735245541195,0.052335,95648.0,95647.0,0.018]
[1735245541399,0.052345,95630.0,95628.0,0.052345]
[1735245542103,0.052337,95644.0,95624.0,0.052348]
[1735245542299,0.052344,95631.0,95625.0,0.052347]
[1735245542697,0.052337,95644.0,95625.0,0.052347]
[1735245543108,0.052338,95643.0,95625.0,0.052347]
[1735245543291,0.052344,95632.0,95625.0,0.052347]
[1735245543496,0.052344,95632.0,95620.0,0.07656207]
[1735245543696,0.052344,95632.0,95620.0,0.10051262]
[1735245543900,0.052344,95631.0,95625.0,0.052347]
[1735245544392,0.052337,95644.0,95625.0,0.052347]
[1735245544606,0.052345,95630.0,95625.0,0.052347]
[1735245544904,0.052345,95629.0,95625.0,0.052347]
[1735245545099,0.05234,95638.0,95614.0,0.052353]
[1735245545306,0.052354,95613.0,95604.0,0.052359]
[1735245545900,0.052356,95610.0,95604.0,0.052359]
[1735245546105,0.2654,95624.0,95604.0,0.052359]
[1735245546305,0.052357,95608.0,95604.0,0.052359]
[1735245546599,0.2654,95624.0,95598.0,0.052362]
[1735245546600,0.052361,95601.0,95598.0,0.052362]
[1735245546908,0.05236,95603.0,95598.0,0.052362]
[1735245547204,0.02468317,95618.0,95598.0,0.052362]
[1735245547395,0.052366,95592.0,95586.0,0.1228]
[1735245547593,0.12891907,95608.0,95583.0,0.05237]
[1735245547795,0.1242,95607.0,95583.0,0.05237]
[1735245548002,0.1242,95607.0,95590.0,0.07656207]
[1735245548200,0.052358,95606.0,95604.0,0.006]
[1735245548409,0.052358,95606.0,95604.0,0.008]
[1735245548598,0.052358,95606.0,95604.0,0.002]
[1735245549106,0.052358,95606.0,95595.0,0.052364]
[1735245549310,0.052359,95604.0,95595.0,0.052364]
[1735245550508,0.1242,95619.0,95595.0,0.052364]
[1735245550710,0.052361,95601.0,95595.0,0.052364]
[1735245550902,0.1299,95600.0,95595.0,0.052364]
[1735245551102,0.052362,95598.0,95588.0,0.052367]
[1735245551607,0.052362,95598.0,95595.0,0.002]
[1735245551803,0.1299,95600.0,95595.0,0.002]
[1735245552109,0.052363,95597.0,95595.0,0.008]
[1735245552310,0.052363,95597.0,95595.0,0.006]
[1735245552510,0.052363,95597.0,95590.0,0.052366]
[1735245553006,0.052363,95597.0,95595.0,0.002]
[1735245553205,0.052363,95597.0,95595.0,0.008]
[1735245554607,0.052363,95597.0,95595.0,0.006]
[1735245555109,0.052363,95597.0,95590.0,0.003]
[1735245555305,0.1299,95600.0,95595.0,0.002]
[1735245555506,0.052363,95596.0,95595.0,0.002]
[1735245556198,0.052363,95596.0,95595.0,0.008]
[1735245557207,0.052363,95596.0,95595.0,0.011]
[1735245557812,0.052363,95596.0,95572.0,0.111076]
[1735245558317,0.052369,95586.0,95575.0,0.052375]
[1735245558610,0.052369,95585.0,95576.0,0.052374]
[1735245559214,0.052371,95582.0,95576.0,0.052374]
[1735245559713,0.173762,95599.0,95572.0,0.120076]
[1735245559714,0.173762,95599.0,95572.0,0.172452]
[1735245559913,0.1214,95599.0,95576.0,0.002]
[1735245560113,0.052372,95580.0,95576.0,0.002]
[1735245561510,0.052362,95598.0,95576.0,0.002]
[1735245561710,0.052373,95578.0,95576.0,0.002]
[1735245562102,0.052375,95574.0,95570.0,0.02402805]
[1735245562307,0.052375,95574.0,95568.0,0.052378]
[1735245562902,0.052375,95574.0,95569.0,0.052378]
[1735245563314,0.052375,95574.0,95570.0,0.003]
[1735245563502,0.052375,95574.0,95570.0,0.055377]
[1735245563704,0.052375,95574.0,95570.0,0.052377]
[1735245564209,0.052375,95574.0,95571.0,0.052377]
[1735245565515,0.052377,95570.0,95569.0,0.003]
[1735245565918,0.052377,95570.0,95568.0,0.052378]
[1735245566119,0.052377,95570.0,95569.0,0.052378]
[1735245566417,0.052376,95573.0,95571.0,0.052377]
[1735245566821,0.052376,95572.0,95571.0,0.052377]
[1735245569218,0.052376,95572.0,95571.0,0.054377]
[1735245570620,0.052376,95572.0,95571.0,0.002]
[1735245570823,0.02119974,95580.0,95537.0,0.3717]
[1735245571017,0.052385,95557.0,95537.0,0.3717]
[1735245571218,0.3827,95556.0,95538.0,0.052395]
[1735245571415,0.052394,95539.0,95538.0,0.052395]
[1735245573420,0.052394,95539.0,95538.0,0.059395]
[1735245576932,0.00157013,95559.0,95538.0,0.007]
[1735245577230,0.00157013,95559.0,95558.0,0.052384]
[1735245577422,0.052372,95580.0,95558.0,0.052384]
[1735245577618,0.052373,95578.0,95576.0,0.052374]
[1735245577819,0.052373,95578.0,95570.0,0.07656207]
[1735245577820,0.052367,95590.0,95570.0,0.05593807]
[1735245578016,0.052367,95589.0,95586.0,0.052369]
[1735245578221,0.052367,95589.0,95580.0,0.07656207]
[1735245578421,0.052362,95599.0,95580.0,0.07656207]
[1735245578733,0.052367,95590.0,95586.0,0.052369]
[1735245579029,0.14618803,95601.0,95586.0,0.052369]
[1735245579229,0.052367,95589.0,95586.0,0.052369]
[1735245580221,0.052367,95589.0,95586.0,0.054369]
[1735245580433,0.14618803,95601.0,95586.0,0.054369]
[1735245580634,0.052368,95588.0,95586.0,0.054369]
[1735245581739,0.052368,95588.0,95586.0,0.052369]
[1735245582639,0.052368,95587.0,95586.0,0.052369]
[1735245582829,0.052368,95587.0,95579.0,0.00112359]
[1735245583030,0.052368,95587.0,95578.0,0.052373]
[1735245583232,0.052368,95587.0,95586.0,0.052369]
[1735245584232,0.14618803,95601.0,95579.0,0.001]
[1735245584433,0.052357,95608.0,95601.0,0.05236]
[1735245584737,0.1282,95619.0,95601.0,0.05236]
[1735245584936,0.2591,95635.0,95591.0,0.07656207]
[1735245585139,0.052347,95625.0,95620.0,0.07656207]
[1735245585334,0.052347,95625.0,95621.0,0.052349]
[1735245585535,0.052344,95632.0,95611.0,0.1227]
[1735245585842,0.052344,95632.0,95628.0,0.052345]
[1735245586938,0.1282,95634.0,95621.0,0.009]
[1735245586939,0.052344,95631.0,95621.0,0.009]
[1735245587140,0.052345,95630.0,95626.0,0.052347]
[1735245587641,0.052345,95630.0,95628.0,0.009]
[1735245587835,0.052345,95630.0,95620.0,0.07390907]
[1735245588136,0.052345,95630.0,95628.0,0.009]
[1735245588740,0.001,95632.0,95628.0,0.009]
[1735245589042,0.1282,95634.0,95626.0,0.009]
[1735245589242,0.001,95630.0,95629.0,0.052345]
[1735245589740,0.008,95630.0,95629.0,0.052345]
[1735245590235,0.007,95630.0,95629.0,0.052345]
[1735245591035,0.013,95630.0,95629.0,0.053345]
[1735245591231,0.006,95630.0,95629.0,0.053345]
[1735245591841,0.015,95630.0,95629.0,0.053345]
[1735245592852,0.015,95630.0,95620.0,0.05425407]
[1735245593349,0.015,95630.0,95629.0,0.052345]
[1735245593945,0.009,95630.0,95629.0,0.052345]
[1735245594144,0.004,95630.0,95629.0,0.052345]
[1735245594342,0.012,95630.0,95629.0,0.052345]
[1735245594742,0.004,95630.0,95629.0,0.052345]
[1735245594943,0.013,95630.0,95629.0,0.053345]
[1735245596148,0.009,95630.0,95629.0,0.053345]
[1735245596347,0.015,95630.0,95629.0,0.054345]
[1735245597954,0.015,95630.0,95620.0,0.05669761]
[1735245598550,0.015,95630.0,95629.0,0.052345]
[1735245599262,0.013,95630.0,95629.0,0.052345]
[1735245599953,0.009,95630.0,95629.0,0.052345]
[1735245600153,0.015,95630.0,95629.0,0.053345]
[1735245600354,0.014,95630.0,95629.0,0.053345]
[1735245600758,0.066345,95630.0,95629.0,0.053345]
[1735245600955,0.066345,95630.0,95629.0,0.001]
[1735245601544,0.067345,95630.0,95629.0,0.002]
[1735245603857,0.015,95630.0,95620.0,0.05791207]
[1735245604057,0.052348,95624.0,95620.0,0.05235]
[1735245604958,0.006,95630.0,95611.0,0.02682465]
[1735245605155,0.060348,95624.0,95620.0,0.001]
[1735245605352,0.052349,95621.0,95620.0,0.001]
[1735245605847,0.052358,95607.0,95581.0,0.00156935]
[1735245606052,0.052366,95591.0,95581.0,0.02774759]
[1735245606252,0.052366,95591.0,95588.0,0.052368]
[1735245607154,0.07656207,95600.0,95581.0,0.00656935]
[1735245607359,0.052371,95582.0,95581.0,0.00656935]
[1735245607751,0.052371,95582.0,95581.0,0.00156935]
[1735245608350,0.08156207,95591.0,95589.0,0.052367]
[1735245608351,0.005,95591.0,95589.0,0.052367]
[1735245609360,0.052365,95593.0,95589.0,0.052367]
[1735245609659,0.004,95591.0,95589.0,0.052367]
[1735245610049,0.01,95591.0,95589.0,0.052367]
[1735245610251,0.01,95591.0,95581.0,0.00156935]
[1735245610457,0.052369,95586.0,95581.0,0.05394035]
[1735245610753,0.052369,95586.0,95583.0,0.05237]
[1735245612757,0.058369,95586.0,95583.0,0.05237]
[1735245613160,0.052372,95580.0,95577.0,0.052373]
[1735245613355,0.006,95586.0,95571.0,0.02681392]
[1735245613554,0.12776951,95606.0,95585.0,0.052369]
[1735245613755,0.02697789,95626.0,95605.0,0.052358]
[1735245613964,0.052349,95623.0,95621.0,0.052349]
[1735245614954,0.05391511,95628.0,95622.0,0.052349]
[1735245615156,0.05391511,95628.0,95624.0,0.052348]
[1735245615465,0.052346,95627.0,95620.0,0.05235]
[1735245615762,0.001,95626.0,95620.0,0.05235]
[1735245615962,0.052349,95623.0,95620.0,0.05235]
[1735245616162,0.001,95626.0,95605.0,0.005]
[1735245616353,0.052351,95619.0,95616.0,0.052352]
[1735245617260,0.004,95623.0,95618.0,0.052351]
[1735245617463,0.004,95623.0,95606.0,0.052357]
[1735245618556,0.008,95619.0,95616.0,0.053352]
[1735245618963,0.008,95619.0,95616.0,0.001]
[1735245619163,0.008,95619.0,95617.0,0.052352]
[1735245619360,0.005,95619.0,95617.0,0.052352]
[1735245619658,0.05235,95621.0,95618.0,0.052351]
[1735245619863,0.05235,95621.0,95619.0,0.05235]
[1735245620060,0.001,95623.0,95619.0,0.05235]
[1735245620765,0.001,95623.0,95622.0,0.052349]
[1735245621064,0.052338,95642.0,95616.0,0.001]
[1735245621065,0.052315,95684.0,95616.0,0.301]
[1735245621362,0.1241,95658.0,95642.0,0.052338]
[1735245621663,0.052336,95646.0,95642.0,0.052338]
[1735245622266,0.052337,95645.0,95642.0,0.052338]
[1735245622865,0.052337,95645.0,95634.0,0.236138]
[1735245623067,0.03367203,95653.0,95639.0,0.052339]
[1735245623364,0.03367203,95653.0,95634.0,0.236138]
[1735245623365,0.0025691,95643.0,95642.0,0.005]
[1735245623666,0.0035691,95643.0,95642.0,0.014]
[1735245624371,0.0035691,95643.0,95642.0,0.009]
[1735245624667,0.0559061,95643.0,95642.0,0.009]
[1735245625557,0.0559061,95643.0,95641.0,0.052338]
[1735245625752,0.0559061,95643.0,95639.0,0.014]
[1735245625956,0.0559061,95643.0,95642.0,0.058338]
[1735245626966,0.0599061,95643.0,95642.0,0.058338]
[1735245627366,0.0599061,95643.0,95642.0,0.053338]
[1735245627367,0.0679061,95643.0,95642.0,0.053338]
[1735245627868,0.0679061,95643.0,95634.0,0.13801499]
[1735245628655,0.0679061,95643.0,95642.0,0.052338]
[1735245628861,0.0145691,95643.0,95642.0,0.052338]
[1735245629164,0.052321,95673.0,95653.0,0.104664]
[1735245629361,0.052321,95673.0,95634.0,0.13801499]
[1735245629362,0.052321,95673.0,95671.0,0.052322]
[1735245630368,0.053321,95673.0,95671.0,0.052322]
[1735245630664,0.052321,95673.0,95671.0,0.052322]
[1735245630859,0.053321,95673.0,95671.0,0.057322]
[1735245632371,0.053321,95673.0,95671.0,0.066322]
[1735245632865,0.052321,95673.0,95663.0,0.06988407]
[1735245633068,0.053321,95673.0,95671.0,0.018]
[1735245633762,0.001,95673.0,95671.0,0.018]
[1735245634068,0.00156827,95693.0,95663.0,0.14644614]
[1735245634069,0.00156827,95693.0,95666.0,0.10465]
[1735245634267,0.00156827,95693.0,95689.0,0.052312]
[1735245634864,0.00156827,95693.0,95691.0,0.052311]
[1735245636268,0.00256827,95693.0,95691.0,0.052311]
[1735245636671,0.00256827,95693.0,95691.0,0.059311]
[1735245636973,0.00356827,95693.0,95691.0,0.068311]
[1735245637872,0.00356827,95693.0,95690.0,0.02920085]
[1735245638062,0.00356827,95693.0,95684.0,0.1261]
[1735245638665,0.00256827,95693.0,95684.0,0.1261]
[1735245638868,0.00356827,95693.0,95691.0,0.009]
[1735245639068,0.00356827,95693.0,95691.0,0.061311]
[1735245639365,0.00356827,95693.0,95691.0,0.070311]
[1735245639573,0.00256827,95693.0,95691.0,0.061311]
[1735245639871,0.00256827,95693.0,95691.0,0.052311]
[1735245640259,0.00156827,95693.0,95691.0,0.053311]
[1735245640465,0.01656827,95693.0,95691.0,0.054311]
[1735245642664,0.06887927,95693.0,95691.0,0.002]
[1735245642969,0.01656827,95693.0,95692.0,0.052311]
[1735245644868,0.01556827,95693.0,95692.0,0.053311]
[1735245645472,0.01556827,95693.0,95692.0,0.054311]
[1735245646865,0.06787827,95693.0,95692.0,0.002]
[1735245647873,0.01556827,95693.0,95683.0,0.05787707]
[1735245648070,0.052311,95691.0,95685.0,0.052314]
[1735245648467,0.052311,95691.0,95683.0,0.05787707]
[1735245648671,0.052311,95691.0,95686.0,0.052314]
[1735245649270,0.1251,95690.0,95686.0,0.052314]
[1735245649771,0.177412,95690.0,95686.0,0.053314]
[1735245649978,0.177412,95690.0,95687.0,0.052313]
[1735245650472,0.177412,95690.0,95688.0,0.052313]
[1735245650667,0.1251,95690.0,95689.0,0.052312]
[1735245650880,0.1341,95690.0,95689.0,0.052312]
[1735245651467,0.1411,95690.0,95689.0,0.052312]
[1735245652180,0.1321,95690.0,95689.0,0.052312]
[1735245652378,0.1421,95690.0,95689.0,0.053312]
[1735245652764,0.1331,95690.0,95689.0,0.054312]
[1735245653068,0.1421,95690.0,95680.0,0.05787407]
[1735245653470,0.194412,95690.0,95686.0,0.052313]
[1735245653669,0.194412,95690.0,95687.0,0.052313]
[1735245653882,0.194412,95690.0,95688.0,0.052313]
[1735245654272,0.069312,95690.0,95688.0,0.052313]
[1735245654674,0.017,95690.0,95689.0,0.052312]
[1735245655272,0.05387827,95693.0,95689.0,0.052312]
[1735245655480,0.015,95690.0,95689.0,0.052312]
[1735245655871,0.006,95690.0,95689.0,0.052312]
[1735245656073,0.015,95690.0,95689.0,0.054312]
[1735245656577,0.006,95690.0,95689.0,0.054312]
[1735245657079,0.015,95690.0,95689.0,0.002]
[1735245663871,0.015,95690.0,95680.0,0.05787407]
[1735245664078,0.015,95690.0,95681.0,0.18754658]
[1735245664878,0.009,95690.0,95686.0,0.052314]
[1735245665182,0.014,95690.0,95686.0,0.052314]
[1735245665687,0.052318,95689.0,95686.0,0.052314]
[1735245665885,0.1,95700.0,95692.0,0.052316]
[1735245666082,0.052307,95709.0,95693.0,0.3818]
[1735245666391,0.052307,95709.0,95699.0,0.15312414]
[1735245666574,0.052308,95707.0,95702.0,0.05231]
[1735245666780,0.052308,95707.0,95705.0,0.052309]
[1735245667682,0.052308,95707.0,95706.0,0.052308]
[1735245667885,0.052308,95707.0,95697.0,0.05587007]
[1735245668085,0.052308,95707.0,95706.0,0.052308]
[1735245669083,0.053308,95707.0,95706.0,0.052308]
[1735245669385,0.061308,95707.0,95706.0,0.053308]
[1735245669574,0.061308,95707.0,95706.0,0.054308]
[1735245669575,0.066308,95707.0,95706.0,0.054308]
[1735245670589,0.014,95707.0,95706.0,0.054308]
[1735245670785,0.01,95707.0,95706.0,0.053308]
[1735245672687,0.062308,95707.0,95706.0,0.001]
[1735245672882,0.190008,95707.0,95706.0,0.001]
[1735245673481,0.190008,95707.0,95680.0,0.07656207]
[1735245673677,0.07656207,95690.0,95679.0,0.04116425]
[1735245673882,0.05232,95685.0,95671.0,0.1223]
[1735245674091,0.174918,95689.0,95671.0,0.1223]
[1735245674389,0.174918,95689.0,95686.0,0.052319]
[1735245674695,0.174918,95689.0,95679.0,0.07656207]
[1735245674886,0.1226,95689.0,95688.0,0.052318]
[1735245675580,0.1336,95689.0,95688.0,0.052318]
[1735245676090,0.1276,95689.0,95688.0,0.02165262]
[1735245676290,0.1336,95689.0,95688.0,0.02265262]
[1735245677991,0.1326,95689.0,95688.0,0.02265262]
[1735245678698,0.1266,95689.0,95688.0,0.02165262]
[1735245678995,0.1326,95689.0,95688.0,0.02265262]
[1735245680594,0.1336,95689.0,95688.0,0.02265262]
[1735245680893,0.1336,95689.0,95688.0,0.001]
[1735245681395,0.185918,95689.0,95688.0,0.001]
[1735245682997,0.185918,95689.0,95683.0,0.02126417]
[1735245683594,0.052319,95687.0,95683.0,0.02126417]
[1735245683895,0.1336,95689.0,95683.0,0.06378627]
[1735245684093,0.052319,95686.0,95683.0,0.02126417]
[1735245685299,0.056319,95686.0,95683.0,0.02126417]
[1735245685594,0.060319,95686.0,95683.0,0.02126417]
[1735245686189,0.05232,95685.0,95683.0,0.02126417]
[1735245686389,0.008,95686.0,95675.0,0.052325]
[1735245686592,0.052324,95678.0,95675.0,0.052325]
[1735245687497,0.052324,95677.0,95675.0,0.052325]
[1735245688186,0.052325,95676.0,95675.0,0.052325]
[1735245690995,0.053325,95676.0,95675.0,0.052325]
[1735245691194,0.055325,95676.0,95675.0,0.052325]
[1735245693099,0.003,95676.0,95675.0,0.052325]
[1735245694589,0.055325,95676.0,95675.0,0.052325]
[1735245695598,0.40065203,95732.0,95675.0,0.352325]